bitfinex/quotes_ETHUSD_20240910
["timestamp","ask_amount","ask_price","bid_price","bid_amount"]
[1725933125715,5.56988301,2343.8,2343.3,0.24682507]
[1725933125716,3.0,2343.8,2343.3,0.24682507]
[1725933125916,0.10667712,2343.7,2343.2,0.08534346]
[1725933126732,0.10667714,2343.8,2343.1,0.08534171]
[1725933130042,3.0,2343.9,2343.2,2.251]
[1725933130043,3.10667533,2343.9,2343.2,2.251]
[1725933130355,3.10667533,2343.9,2343.3,0.08533995]
[1725933130559,3.0,2343.9,2343.3,0.31897394]
[1725933130766,5.93453082,2344.3,2343.4,2.251]
[1725933130767,1.76977003,2344.2,2343.4,2.251]
[1725933131074,4.59179758,2344.3,2343.6,2.3602]
[1725933131075,2.4843547,2344.3,2343.6,2.3602]
[1725933131403,2.4843547,2344.3,2343.7,0.08532272]
[1725933131525,2.3777,2344.3,2343.7,0.32987499]
[1725933131727,2.3777,2344.3,2343.8,0.08531548]
[1725933132271,2.3777,2344.3,2343.7,0.24455227]
[1725933133658,0.1066487,2344.2,2343.7,0.24455227]
[1725933133863,0.10551662,2344.2,2343.7,0.24455227]
[1725933134703,0.10551662,2344.2,2343.6,2.3602]
[1725933134704,3.27761372,2343.9,2342.9,1.48562933]
[1725933134981,3.27761372,2343.2,2342.2,2.4692]
[1725933135292,0.10670497,2343.2,2342.2,2.4692]
[1725933135578,0.6648625,2343.1,2342.2,2.4692]
[1725933135778,4.01471681,2343.2,2342.3,0.24692]
[1725933135779,0.10671213,2343.0,2342.3,0.24692]
[1725933140338,3.27761372,2342.8,2342.3,0.24692]
[1725933140595,3.27761372,2342.8,2342.0,9.7376]
[1725933140596,0.10672408,2342.7,2342.0,9.7376]
[1725933140740,0.10672408,2342.7,2342.0,2.3776]
[1725933141135,0.10672408,2342.7,2341.8,2.3776]
[1725933141136,5.55871372,2342.6,2341.8,2.3776]
[1725933141441,0.10673296,2342.5,2341.8,2.3776]
[1725933144895,0.10673296,2342.5,2341.7,7.36]
[1725933145101,0.10673296,2342.5,2341.4,12.44]
[1725933145102,5.56351372,2342.4,2341.8,2.709]
[1725933145244,5.56351372,2342.4,2341.5,7.36]
[1725933145245,0.1067453,2342.3,2341.5,7.36]
[1725933145454,0.1067453,2342.3,2341.4,2.2943]
[1725933151629,2.4153,2342.2,2341.4,2.2943]
[1725933151779,2.4153,2342.2,2341.5,0.96543]
[1725933153029,3.10674397,2342.4,2341.6,0.08539518]
[1725933153325,2.2786,2342.4,2341.6,0.08539518]
[1725933155626,2.2786,2342.4,2341.5,0.96543]
[1725933155797,2.2786,2342.4,2341.6,0.875973]
[1725933157421,3.27761372,2342.4,2341.6,0.875973]
[1725933157728,2.318,2342.1,2341.6,0.325973]
[1725933157937,2.42474971,2342.1,2341.5,0.96543]
[1725933161641,0.10674978,2342.0,2341.5,0.96543]
[1725933166844,2.42474997,2342.1,2341.5,0.96543]
[1725933167246,2.318,2342.1,2341.5,0.96543]
[1725933167454,2.318,2342.1,2341.6,2.40129994]
[1725933167617,0.10674081,2342.4,2341.7,0.33667299]
[1725933167995,2.4959,2342.3,2341.8,0.08538973]
[1725933168147,5.4959,2342.3,2341.8,0.08538973]
[1725933169741,5.4959,2342.3,2341.7,0.33667299]
[1725933177436,5.4959,2342.3,2341.8,0.70266119]
[1725933177743,5.4959,2342.3,2341.7,0.33667299]
[1725933180239,7.01057103,2342.3,2341.8,0.43918349]
[1725933180605,2.387,2342.1,2341.7,1.03937509]
[1725933180751,2.387,2342.1,2341.8,0.43918012]
[1725933180955,2.387,2342.1,2341.9,0.43917919]
[1725933181172,2.387,2342.1,2341.7,0.70268671]
[1725933181370,2.387,2342.1,2341.8,0.43919009]
[1725933181543,2.387,2342.1,2341.5,0.96543]
[1725933181745,4.62141461,2342.3,2341.6,1.56976987]
[1725933181965,4.62141461,2342.3,2341.6,0.57916083]
[1725933181966,2.2784,2342.3,2341.6,0.57916083]
[1725933182167,2.2784,2342.3,2341.7,2.3871]
[1725933184681,2.2784,2342.3,2341.7,4.89827863]
[1725933184882,2.2784,2342.3,2341.7,3.41203756]
[1725933185065,2.2784,2342.3,2341.8,0.48870211]
[1725933187782,4.04817003,2342.3,2341.8,0.48870211]
[1725933188170,4.15490846,2342.3,2341.8,0.48870211]
[1725933188568,2.38513843,2342.3,2341.8,0.48870211]
[1725933189290,4.15490846,2342.3,2341.8,0.48870211]
[1725933189686,2.38513843,2342.3,2341.8,0.48870211]
[1725933189880,2.38513843,2342.3,2341.9,0.28758021]
[1725933190075,4.15490846,2342.3,2341.9,0.28758021]
[1725933191213,2.38513843,2342.3,2341.9,0.28758021]
[1725933192413,4.15490846,2342.3,2341.9,0.28758021]
[1725933192721,2.38513843,2342.3,2341.9,0.28758021]
[1725933193089,4.15490846,2342.3,2341.9,0.28758021]
[1725933193818,2.38513843,2342.3,2341.9,0.28758021]
[1725933194020,4.15490846,2342.3,2341.9,0.28758021]
[1725933194584,0.10673868,2342.2,2341.9,0.28758021]
[1725933194908,2.3851428,2342.3,2341.9,0.28758021]
[1725933195279,4.15491283,2342.3,2341.9,0.28758021]
[1725933196126,2.3851428,2342.3,2341.9,0.28758021]
[1725933196300,4.15491283,2342.3,2341.9,0.28758021]
[1725933198220,1.87651283,2342.3,2341.9,0.28758021]
[1725933198945,1.76977003,2342.3,2341.9,0.28758021]
[1725933199264,1.710843,2344.4,2341.9,0.28758021]
[1725933199265,1.76977003,2342.9,2342.2,2.2806]
[1725933199550,2.66863975,2343.2,2342.5,1.51467103]
[1725933199551,2.3698,2343.2,2342.5,1.51467103]
[1725933199708,2.33056574,2343.3,2342.6,2.36595942]
[1725933199912,0.10669928,2343.3,2342.7,0.38806305]
[1725933200124,0.10669928,2343.3,2342.8,0.08535663]
[1725933202120,0.10669366,2343.5,2342.8,0.08535663]
[1725933202450,0.10669366,2343.5,2342.7,0.38806305]
[1725933202633,1.51467103,2343.4,2342.7,0.38806305]
[1725933202833,0.10669376,2343.3,2342.7,0.38806305]
[1725933208787,0.10669376,2343.3,2342.8,2.3372]
[1725933208955,0.10669376,2343.3,2342.9,0.27252631]
[1725933210708,0.10669376,2343.3,2342.8,2.3372]
[1725933216688,0.10669692,2343.5,2342.8,2.3372]
[1725933217626,1.51467103,2343.4,2342.8,2.3372]
[1725933217828,0.1066969,2343.3,2342.8,2.3372]
[1725933219200,1.62136779,2343.5,2342.8,2.3372]
[1725933219517,1.62136779,2343.5,2343.0,2.3452]
[1725933219719,0.10669676,2343.5,2343.0,2.3452]
[1725933220085,0.10669142,2343.6,2343.0,2.3452]
[1725933223900,0.10669142,2343.7,2343.1,0.08535313]
[1725933224101,5.21390109,2344.1,2343.1,0.08535313]
[1725933224102,0.10669142,2344.0,2343.2,2.43]
[1725933224300,0.10669142,2344.0,2343.4,2.43]
[1725933226550,0.10669142,2344.0,2343.6,2.2625]
[1725933227606,0.10666405,2344.3,2343.7,0.08533124]
[1725933227829,0.10665616,2344.4,2343.8,2.4825]
[1725933228065,0.10665616,2344.4,2343.8,2.73928312]
[1725933229158,1.51467103,2344.3,2343.8,2.73928312]
[1725933229361,0.10664974,2344.2,2343.8,2.73928312]
[1725933230024,1.62132178,2344.3,2343.8,2.73928312]
[1725933230224,0.10664975,2344.2,2343.8,2.4825]
[1725933230618,0.10664975,2344.2,2342.9,3.23372]
[1725933230619,1.51467103,2343.9,2343.6,2.3405]
[1725933230829,0.10667289,2343.8,2343.1,2.3405]
[1725933233711,0.10667289,2344.0,2343.1,2.3405]
[1725933235363,0.10667289,2344.0,2343.2,2.4821]
[1725933235565,0.10666187,2344.1,2343.4,2.4821]
[1725933235710,0.10666187,2344.1,2343.6,2.4821]
[1725933236157,0.10665949,2344.3,2343.6,2.4821]
[1725933236363,0.10665949,2344.3,2343.7,0.08532759]
[1725933236562,0.10665949,2344.3,2343.8,2.3687]
[1725933236709,0.10665949,2344.3,2343.8,2.45402014]
[1725933237048,0.10665018,2344.4,2343.8,2.45402014]
[1725933237729,0.10665018,2344.4,2343.8,2.3687]
[1725933240958,0.10665018,2344.4,2343.9,0.08531873]
[1725933241272,0.10664608,2344.5,2343.9,0.37154159]
[1725933241753,1.62131711,2344.5,2343.9,0.28622286]
[1725933241938,1.62131711,2344.5,2343.8,2.3687]
[1725933244321,0.10664608,2344.5,2343.8,2.45402081]
[1725933245018,0.10664608,2344.5,2343.8,2.3687]
[1725933245832,0.10664608,2344.5,2343.9,0.08531691]
[1725933250979,2.38004618,2344.6,2343.9,0.08531691]
[1725933251138,2.38004618,2344.6,2343.9,0.52300669]
[1725933252177,0.10663988,2344.5,2343.9,0.52300669]
[1725933252764,0.10663987,2344.5,2343.9,0.52300669]
[1725933253085,0.10663987,2344.5,2343.9,0.43768978]
[1725933253463,0.10663987,2344.5,2344.0,0.08531155]
[1725933253662,0.10663987,2344.5,2344.0,0.37448168]
[1725933255690,0.10663987,2344.5,2344.0,0.28917013]
[1725933258862,0.10663987,2344.5,2343.3,4.51467103]
[1725933258863,2.2794,2344.3,2343.3,4.51467103]
[1725933259197,2.2794,2344.1,2343.4,2.3594]
[1725933259398,0.10666723,2344.0,2343.4,2.3594]
[1725933259570,2.2794,2343.9,2343.5,0.23594]
[1725933259767,0.10667157,2343.8,2343.2,2.3594]
[1725933260905,0.10667157,2343.8,2343.2,5.3594]
[1725933261395,2.2794,2343.9,2343.2,5.3594]
[1725933261694,0.10667151,2343.8,2343.2,5.3594]
[1725933264001,2.2794,2343.9,2343.2,5.3594]
[1725933264179,2.2794,2343.9,2343.3,0.6874071]
[1725933265477,2.2794,2343.9,2343.3,2.20207813]
[1725933273365,2.2794,2343.9,2343.3,0.6874071]
[1725933277037,2.3249,2343.7,2343.3,0.6874071]
[1725933278314,2.3249,2343.5,2343.0,8.86209783]
[1725933278502,2.472,2343.3,2343.0,7.36]
[1725933278709,2.472,2343.3,2342.7,2.54574982]
[1725933278893,2.472,2343.3,2342.8,1.00160442]
[1725933279109,2.472,2343.3,2342.8,0.6699677]
[1725933279309,0.10669212,2343.2,2342.8,0.6699677]
[1725933279533,0.10669212,2343.2,2342.5,9.75792055]
[1725933279534,2.472,2343.1,2342.5,9.75792055]
[1725933279715,2.472,2343.1,2342.6,1.00141589]
[1725933280005,0.10670394,2343.0,2342.6,1.00141589]
[1725933280208,0.10670394,2343.0,2342.4,3.44187539]
[1725933280441,0.10670394,2343.0,2342.5,1.00147132]
[1725933280644,0.10670394,2343.0,2342.5,0.49141425]
[1725933281295,2.57870859,2343.1,2342.5,0.49141425]
[1725933282296,2.472,2343.1,2342.6,0.08536684]
[1725933283545,2.472,2343.1,2342.5,2.00608528]
[1725933283743,2.472,2343.1,2342.6,0.50060853]
[1725933284248,2.472,2343.1,2342.3,6.01684846]
[1725933284531,2.472,2343.1,2342.4,1.5498674]
[1725933284731,2.472,2343.1,2342.4,0.55]
[1725933285640,0.1067015,2343.0,2342.4,0.55]
[1725933285800,0.10670332,2343.0,2342.3,4.51467103]
[1725933286006,2.3694,2342.9,2342.4,1.56918595]
[1725933286428,0.10670884,2342.8,2342.2,7.36]
[1725933286633,2.4905,2342.7,2342.0,1.51467103]
[1725933287441,2.3035,2342.5,2342.0,1.51467103]
[1725933288952,2.3763,2343.0,2342.0,1.51467103]
[1725933289108,2.3763,2342.8,2342.0,1.51467103]
[1725933289446,2.3763,2342.8,2342.1,1.03733131]
[1725933298350,2.3763,2342.8,2342.2,1.51467103]
[1725933304345,2.3763,2342.8,2342.2,1.95374458]
[1725933304641,2.3763,2342.8,2342.4,1.51467103]
[1725933305340,2.3763,2342.8,2342.5,0.08536857]
[1725933305580,2.3763,2342.8,2342.5,0.52444212]
[1725933305876,2.3763,2342.8,2342.5,0.43907355]
[1725933306381,2.3763,2342.8,2342.6,0.43907355]
[1725933306585,2.3763,2342.8,2342.5,0.43907355]
[1725933306755,2.3763,2342.8,2342.6,0.43907355]
[1725933307083,2.3763,2342.8,2342.5,0.43907355]
[1725933307303,2.3763,2342.8,2342.4,1.51467103]
[1725933307498,2.3763,2342.8,2342.5,0.43902668]
[1725933307667,2.3763,2342.8,2342.4,1.51467103]
[1725933307668,2.3763,2342.8,2342.6,0.43902668]
[1725933307990,2.3763,2342.8,2342.6,0.26562154]
[1725933308355,2.3763,2342.8,2342.7,0.43903124]
[1725933308877,2.3763,2342.8,2342.6,0.26562154]
[1725933309188,2.3763,2342.8,2342.7,0.43903119]
[1725933309580,2.3763,2342.8,2342.3,0.70244991]
[1725933309762,2.3763,2342.8,2342.4,0.43906595]
[1725933310102,2.3763,2342.8,2342.5,0.43906595]
[1725933310255,2.3763,2342.8,2342.3,0.70251209]
[1725933310455,2.3763,2342.8,2342.4,1.14157201]
[1725933310795,1.51467103,2343.0,2342.5,0.43905992]
[1725933310796,2.3308,2342.6,2342.5,0.43905992]
[1725933311869,2.3308,2342.6,2342.1,1.03733131]
[1725933312192,2.3308,2342.6,2342.5,0.43907363]
[1725933314763,2.41,2343.0,2342.5,0.43907363]
[1725933315057,2.41,2343.0,2342.4,0.70248459]
[1725933315058,2.41,2343.0,2342.6,0.43907363]
[1725933315260,2.41,2343.0,2342.6,0.08536609]
[1725933315455,2.41,2343.0,2342.7,0.43901781]
[1725933315660,2.41,2343.0,2342.8,0.43901781]
[1725933315863,2.41,2343.0,2342.6,0.08536609]
[1725933316201,2.41,2343.0,2342.7,0.43901572]
[1725933316494,2.41,2343.0,2342.8,0.43901572]
[1725933316695,2.41,2343.0,2342.9,0.43901572]
[1725933319184,2.41,2343.3,2342.9,0.43901572]
[1725933319376,2.41,2343.3,2343.0,0.43901572]
[1725933319572,2.41,2343.3,2342.6,1.60003712]
[1725933319769,2.41,2343.3,2342.7,0.43898988]
[1725933319970,2.41,2343.3,2342.8,0.52434876]
[1725933320204,2.41,2343.3,2342.9,0.43898988]
[1725933320388,2.41,2343.3,2343.0,0.87117186]
[1725933320588,2.41,2343.3,2343.1,0.43898988]
[1725933320779,2.41,2343.3,2343.0,0.43218198]
[1725933320984,2.41,2343.3,2343.1,0.43896062]
[1725933321194,2.41,2343.3,2343.0,0.43218198]
[1725933321372,2.41,2343.3,2343.1,0.43896212]
[1725933321576,2.41,2343.3,2342.9,0.0853554]
[1725933321791,2.41,2343.3,2343.0,0.43897379]
[1725933321978,2.41,2343.3,2342.9,0.0853554]
[1725933322207,2.41,2343.3,2343.0,0.43899025]
[1725933322377,2.41,2343.3,2342.7,0.66788002]
[1725933322583,2.41,2343.3,2342.8,0.75323545]
[1725933322779,2.41,2343.3,2342.8,0.54042608]
[1725933324722,2.41,2343.3,2342.8,0.45507065]
[1725933326013,2.41,2343.3,2342.9,0.08535549]
[1725933326714,2.41,2343.6,2342.9,0.08535549]
[1725933326914,0.1066878,2343.5,2342.9,2.41485549]
[1725933327124,0.1066878,2343.5,2343.0,0.58951526]
[1725933329041,2.51668752,2343.6,2343.0,0.58951526]
[1725933330104,2.41,2343.6,2343.1,0.08534999]
[1725933330445,2.41,2343.6,2343.0,2.10418629]
[1725933330741,2.44598748,2343.8,2343.1,3.60542789]
[1725933331341,2.3393,2343.8,2343.1,3.60542789]
[1725933335431,0.10667278,2343.7,2343.1,3.60542789]
[1725933337114,2.44597281,2343.8,2343.1,3.60542789]
[1725933338148,2.3393,2343.8,2343.1,3.60542789]
[1725933338349,2.3393,2343.8,2343.2,0.57096142]
[1725933339749,2.44597278,2343.8,2343.2,0.57096142]
[1725933340413,2.3393,2343.8,2343.2,0.57096142]
[1725933340641,2.56297279,2344.0,2343.2,0.57096142]
[1725933341159,1.51467103,2343.9,2343.3,2.3039]
[1725933341448,0.10667279,2343.8,2343.3,2.3039]
[1725933342219,0.10667281,2343.9,2343.3,2.3039]
[1725933342518,2.56297279,2344.0,2343.3,2.3039]
[1725933342727,0.10666631,2343.9,2343.3,2.3039]
[1725933342918,0.10666631,2343.9,2343.4,0.3818571]
[1725933344767,0.10666631,2343.9,2343.0,1.48304172]
[1725933344978,2.2594,2343.7,2343.0,0.58951526]
[1725933345267,0.10668239,2343.6,2343.0,0.58951526]
[1725933345643,0.10668239,2343.6,2343.1,2.2682]
[1725933348347,1.62135342,2343.6,2342.9,2.2762]
[1725933348552,1.62135342,2343.6,2342.8,0.45507065]
[1725933348553,2.4744,2343.5,2342.8,0.45507065]
[1725933348754,0.10669428,2343.4,2342.8,0.45507065]
[1725933349551,2.4744,2343.3,2342.8,0.45507065]
[1725933349868,2.4744,2343.3,2342.5,0.89352646]
[1725933349869,0.10669884,2343.2,2342.6,2.2762]
[1725933350378,2.4744,2343.3,2342.7,1.00294073]
[1725933350957,0.10669874,2343.2,2342.7,1.00294073]
[1725933351241,0.10669885,2343.2,2342.7,1.00294073]
[1725933351551,0.10669885,2343.2,2342.6,2.2762]
[1725933351876,0.10669885,2343.2,2342.7,1.47159019]
[1725933352038,0.1066988,2343.2,2342.7,0.46843975]
[1725933352463,0.10669887,2343.2,2342.7,0.46843975]
[1725933352664,2.4744,2343.3,2342.7,0.46843975]
[1725933353388,2.4744,2343.3,2342.8,0.27446397]
[1725933353877,2.59529887,2343.5,2342.8,0.27446397]
[1725933354171,2.59529887,2343.5,2342.9,2.3266]
[1725933354172,0.106691,2343.4,2342.9,2.3266]
[1725933358495,0.10669112,2343.5,2342.9,2.3266]
[1725933358664,2.53358419,2343.6,2343.0,0.36696214]
[1725933359240,2.53358419,2343.6,2343.1,2.44774596]
[1725933359241,0.10668419,2343.6,2343.1,2.44774596]
[1725933359489,3.94157103,2343.8,2343.1,2.44774596]
[1725933359490,0.10668195,2343.7,2343.1,2.3624]
[1725933361458,0.10668195,2343.7,2343.1,3.43095743]
[1725933361662,0.10668195,2343.7,2343.2,0.61971107]
[1725933362064,2.4269,2343.8,2343.3,2.36873899]
[1725933362065,0.10667374,2343.8,2343.3,2.36873899]
[1725933362478,0.10667371,2343.9,2343.3,2.36873899]
[1725933362676,0.10667371,2343.9,2343.3,3.43714076]
[1725933363706,2.36367096,2344.0,2343.4,0.08533677]
[1725933363859,2.2556,2344.2,2343.5,3.81307103]
[1725933364195,0.10665961,2344.3,2343.5,3.81307103]
[1725933364196,0.10665961,2344.3,2343.6,1.08980435]
[1725933364364,0.10665961,2344.3,2343.6,0.08532521]
[1725933364955,0.10665961,2344.3,2343.7,2.4622]
[1725933365156,2.2556,2344.4,2343.8,0.08532522]
[1725933365157,2.36225653,2344.4,2343.8,0.08532522]
[1725933365360,0.10665653,2344.4,2343.8,0.59838502]
[1725933366303,2.49954925,2344.6,2344.0,2.3528]
[1725933366592,0.10664925,2344.6,2344.0,2.3528]
[1725933366798,0.1066365,2344.7,2344.0,2.3528]
[1725933371301,2.3751,2344.6,2343.6,2.3423]
[1725933371473,2.48174701,2344.5,2343.7,0.561768]
[1725933371673,2.48174701,2344.5,2343.6,2.3423]
[1725933373573,2.48174701,2344.5,2343.5,6.27538004]
[1725933373574,0.10664953,2344.6,2343.8,2.3568]
[1725933373770,0.10664953,2344.6,2344.0,2.3568]
[1725933377223,0.10663463,2344.8,2344.0,2.3568]
[1725933377529,0.6725161,2344.8,2344.0,2.59248]
[1725933377821,0.10663602,2344.7,2344.0,2.59248]
[1725933378914,3.27538004,2344.9,2344.0,2.59248]
[1725933378915,2.55403604,2344.8,2344.0,2.59248]
[1725933379091,0.10663609,2344.7,2344.0,2.59248]
[1725933381287,0.10663609,2344.7,2344.2,2.4015]
[1725933381488,8.71908004,2345.1,2344.2,2.4015]
[1725933381489,0.10663153,2345.0,2344.3,0.24015]
[1725933383839,5.64458004,2344.9,2344.1,2.45]
[1725933384037,0.10663625,2344.8,2344.1,2.45]
[1725933388113,1.51163678,2344.7,2344.1,2.45]
[1725933388418,0.10664069,2344.6,2344.1,2.45]
[1725933388594,0.10664069,2344.6,2344.1,3.431]
[1725933389100,2.43464069,2344.6,2344.1,2.45]
[1725933389302,2.43464069,2344.6,2344.0,2.3599]
[1725933396529,0.10664069,2344.6,2344.0,2.3599]
[1725933396730,2.40484071,2344.8,2344.0,2.3599]
[1725933396936,0.10664067,2344.7,2344.0,2.3599]
[1725933397148,0.10664067,2344.7,2344.1,0.23599]
[1725933397363,0.10664067,2344.7,2344.2,2.4561]
[1725933398143,2.56474071,2345.1,2344.5,1.51163678]
[1725933398357,2.56474071,2345.1,2344.5,0.08529658]
[1725933398358,2.4581,2345.1,2344.5,0.08529658]
[1725933398653,2.4581,2345.1,2344.5,0.49461992]
[1725933398952,2.4581,2345.1,2344.5,0.40932334]
[1725933399607,2.4581,2345.1,2344.5,0.49461993]
[1725933399807,2.21269139,2345.6,2344.6,2.3489]
[1725933399808,2.3149,2345.2,2344.6,2.3489]
[1725933400021,2.3149,2345.2,2344.7,0.27582233]
[1725933400235,2.42150845,2345.4,2344.7,0.27582233]
[1725933401228,0.10660847,2345.3,2344.7,0.27582233]
[1725933401429,0.10660847,2345.3,2344.8,0.08528678]
[1725933401724,2.3354,2345.6,2344.9,2.3225]
[1725933401946,0.10660477,2345.5,2344.9,2.91815413]
[1725933402565,2.3354,2345.6,2345.0,0.08528094]
[1725933402850,2.3246,2345.9,2345.1,5.72723224]
[1725933403060,0.10658866,2345.8,2345.3,2.4543]
[1725933403356,2.65749996,2346.5,2345.4,0.08527097]
[1725933403357,2.43118872,2346.2,2345.4,0.08527097]
[1725933403739,2.43118872,2346.2,2345.3,3.03555032]
[1725933412934,2.43118872,2346.2,2345.4,2.4007]
[1725933425350,0.10658872,2346.2,2345.4,2.4007]
[1725933425651,0.10658872,2346.2,2345.5,2.69742163]
[1725933429518,0.10658872,2346.2,2345.6,2.4339]
[1725933430539,0.10657097,2346.3,2345.7,2.36205677]
[1725933430908,0.10656683,2346.5,2345.8,2.2768]
[1725933431142,0.10656683,2346.5,2345.9,2.50448]
[1725933432404,2.40676683,2346.5,2345.9,2.2768]
[1725933432709,2.40676683,2346.5,2345.6,7.36]
[1725933432710,3.26979393,2346.2,2345.6,7.36]
[1725933432991,0.10658271,2346.1,2345.6,7.36]
[1725933433193,0.10658271,2346.1,2345.6,8.32674]
[1725933434461,0.10658271,2346.1,2345.7,2.4536]
[1725933436193,2.3197,2346.0,2345.6,8.32674]
[1725933436498,0.10658263,2345.9,2345.5,2.4773]
[1725933443293,0.10658413,2346.1,2345.5,2.4773]
[1725933445304,2.32541568,2346.1,2345.5,2.4773]
[1725933446166,0.10658413,2346.1,2345.5,2.4773]
[1725933446362,2.32541568,2346.1,2345.5,2.4773]
[1725933447303,2.21883155,2346.0,2345.5,2.4773]
[1725933447505,0.10658412,2345.9,2345.5,2.4773]
[1725933448306,0.10658412,2345.9,2345.3,2.3084]
[1725933448604,2.57378412,2345.9,2345.4,1.11695347]
[1725933448826,2.57378412,2345.9,2345.3,2.3084]
[1725933449707,0.10658412,2345.9,2345.3,2.3084]
[1725933451572,0.10658313,2346.0,2345.4,2.2862]
[1725933452321,0.10657121,2346.1,2345.6,2.2862]
[1725933452463,0.10657121,2346.1,2345.7,0.59444424]
[1725933452663,0.10657121,2346.1,2345.4,2.4122]
[1725933452664,2.4474,2346.0,2345.4,2.4122]
[1725933452869,0.10658078,2345.9,2345.4,2.4122]
[1725933456349,0.10658078,2345.9,2345.4,3.92987235]
[1725933456552,0.10658078,2345.9,2345.4,2.4122]
[1725933458642,0.10658078,2345.9,2345.4,3.92982514]
[1725933458846,0.10658078,2345.9,2345.5,1.50261035]
[1725933459164,0.10658071,2346.1,2345.5,0.49086162]
[1725933459327,0.10658071,2346.1,2345.5,0.5761261]
[1725933459731,0.10658071,2346.1,2345.6,2.4805]
[1725933460039,0.10657113,2346.2,2345.6,2.4805]
[1725933460227,0.10657113,2346.2,2345.7,0.60839258]
[1725933461350,0.10657113,2346.2,2345.6,2.4805]
[1725933462485,2.3668,2346.4,2345.8,2.426]
[1725933462780,0.10656063,2346.3,2345.8,2.51124851]
[1725933462962,0.10656063,2346.3,2345.9,0.40210256]
[1725933464534,0.10656063,2346.3,2345.6,2.3613]
[1725933464856,2.32955876,2346.3,2345.6,2.3613]
[1725933465065,3.8765771,2346.4,2345.6,2.3613]
[1725933465066,0.10657065,2346.2,2345.6,2.3613]
[1725933467278,2.266,2346.1,2345.5,7.36]
[1725933467580,0.10657068,2346.0,2345.5,7.36]
[1725933467736,0.10657062,2346.0,2345.6,0.96612]
[1725933468674,2.37257076,2346.1,2345.6,0.96612]
[1725933468853,0.10657076,2346.1,2345.7,2.3244]
[1725933469580,0.10657067,2346.2,2345.7,2.3244]
[1725933469743,0.10657067,2346.2,2345.8,0.329052]
[1725933472174,0.10657056,2346.3,2345.8,0.329052]
[1725933472479,2.22318881,2346.6,2345.9,2.3993]
[1725933472640,2.22318881,2346.6,2346.0,0.2728352]
[1725933472984,0.10654972,2346.5,2346.0,0.2728352]
[1725933473740,2.32973817,2346.6,2346.0,0.35807468]
[1725933473946,0.10654936,2346.6,2346.1,2.2578]
[1725933474265,2.329738,2346.8,2346.2,0.08523935]
[1725933474464,2.329738,2346.8,2346.3,2.2578]
[1725933474465,0.10654919,2346.8,2346.3,2.2578]
[1725933474666,0.10654919,2346.8,2346.4,0.23430394]
[1725933476877,0.10654919,2346.8,2346.3,2.2578]
[1725933482693,2.3026,2347.1,2346.3,2.2578]
[1725933482694,0.10654073,2346.9,2346.3,2.2578]
[1725933483077,0.10653107,2347.1,2346.5,2.4016]
[1725933483330,0.1065205,2347.2,2346.4,2.4016]
[1725933483617,0.1065162,2347.4,2346.6,2.4016]
[1725933485026,3.3751455,2347.4,2346.6,2.4016]
[1725933485228,2.3292,2347.3,2346.6,2.4016]
[1725933485434,0.10652814,2347.2,2346.6,2.4016]
[1725933490748,0.10652795,2347.4,2346.8,2.3378]
[1725933490947,0.10652795,2347.4,2346.9,0.24230224]
[1725933491357,0.10652795,2347.4,2346.8,2.42301177]
[1725933491594,0.10652795,2347.4,2346.8,2.3378]
[1725933495245,0.22565987,2347.6,2346.8,2.3378]
[1725933495468,0.22565987,2347.6,2346.5,3.83565223]
[1725933495469,0.22565987,2347.6,2346.9,2.43371325]
[1725933495669,0.22565987,2347.6,2346.9,2.3485]
[1725933495875,0.22565987,2347.6,2346.9,2.58335]
[1725933497230,0.1191433,2347.6,2347.1,2.3597]
[1725933497432,0.1191433,2347.6,2347.3,2.3597]
[1725933498445,3.3877726,2347.6,2347.0,2.4006]
[1725933498649,0.1065134,2347.5,2347.0,2.4006]
[1725933498885,0.1065134,2347.5,2347.0,2.64066]
[1725933499097,5.6976293,2347.4,2346.5,0.56702293]
[1725933499305,0.10652565,2347.3,2346.6,2.3317]
[1725933502649,5.6944293,2347.2,2346.3,9.8536]
[1725933502793,5.6944293,2347.2,2346.3,7.36]
[1725933502794,3.2686293,2347.0,2346.3,7.36]
[1725933502994,0.10654195,2346.9,2346.3,8.096]
[1725933503192,0.10654195,2346.9,2346.3,0.736]
[1725933503384,0.10654195,2346.9,2346.1,2.93193255]
[1725933503917,0.10654195,2346.9,2346.1,2.4936]
[1725933504918,2.3091,2346.8,2346.1,2.4936]
[1725933505114,0.1065473,2346.7,2346.1,2.4936]
[1725933506782,0.10654465,2346.8,2346.2,0.08523572]
[1725933507106,0.10654465,2346.8,2346.3,2.4876]
[1725933507983,2.4157,2347.0,2346.3,2.4876]
[1725933507984,0.10653963,2346.9,2346.3,2.4876]
[1725933509890,0.10653963,2346.9,2346.3,2.57283038]
[1725933510654,0.10653963,2346.9,2346.3,2.4876]
[1725933512954,0.10653963,2346.9,2346.2,0.28516709]
[1725933513111,0.10653963,2346.9,2346.1,2.4742]
[1725933514941,5.48904898,2347.2,2346.3,2.3587]
[1725933514942,0.10654032,2347.1,2346.3,2.3587]
[1725933516313,4.72326298,2347.6,2346.8,2.3587]
[1725933516536,0.10650676,2347.5,2346.9,0.56273293]
[1725933517031,0.10650676,2347.5,2346.8,2.3587]
[1725933517249,2.5028433,2347.6,2347.0,2.4263]
[1725933517250,0.22565006,2347.6,2347.0,2.4263]
[1725933517411,0.1191433,2347.6,2347.1,0.08519486]
[1725933517611,0.1191433,2347.6,2347.0,2.4263]
[1725933520656,2.4897,2347.5,2347.0,2.4263]
[1725933520855,2.4897,2347.5,2347.0,2.66893]
[1725933521637,2.4897,2347.5,2347.0,0.24263]
[1725933522026,0.1065046,2347.4,2346.8,2.3716]
[1725933522559,0.1065046,2347.4,2346.6,9.8244]
[1725933524650,2.4123,2347.3,2346.6,9.8244]
[1725933524864,0.10651718,2347.2,2346.6,9.8244]
[1725933526371,2.4123,2347.1,2346.6,7.36]
[1725933526672,2.4123,2346.9,2346.2,7.36]
[1725933526985,0.10653764,2346.8,2346.2,7.36]
[1725933527676,2.4123,2346.7,2346.2,7.36]
[1725933528137,0.10653933,2346.6,2346.2,7.36]
[1725933528339,0.10653933,2346.6,2346.0,0.2728352]
[1725933529254,2.4123,2346.5,2345.8,27.09]
[1725933529457,0.10655937,2346.4,2345.8,27.09]
[1725933529765,0.10655937,2346.4,2345.5,8.25352646]